[Event "*** SCC Grand Prix: Titled Tuesday Blitz"]
[Site "Chess.com"]
[Date "2020.08.25"]
[Round "1"]
[White "beto-betun"]
[Black "Jovidon91"]
[Result "1-0"]
[WhiteElo "2107"]
[BlackElo "2477"]
[TimeControl "180+1"]
[EndTime "10:08:52 PDT"]
[Termination "beto-betun won by checkmate"]

1. d4 {[%clk 0:02:59.7]} 1... Nf6 {[%clk 0:02:59.6]} 2. c4 {[%clk 0:02:56.7]}
2... e6 {[%clk 0:02:59.7]} 3. Nf3 {[%clk 0:02:55.6]} 3... b6 {[%clk 0:02:59.5]}
4. g3 {[%clk 0:02:53.5]} 4... Ba6 {[%clk 0:02:58.5]} 5. b3 {[%clk 0:02:49.2]}
5... Bb4+ {[%clk 0:02:56.9]} 6. Bd2 {[%clk 0:02:47.7]} 6... Be7 {[%clk
0:02:56.8]} 7. Bc3 {[%clk 0:02:40.3]} 7... d5 {[%clk 0:02:56.3]} 8. Nbd2 {[%clk
0:02:34.2]} 8... O-O {[%clk 0:02:55.6]} 9. Bg2 {[%clk 0:02:32.4]} 9... c6 {[%clk
0:02:56]} 10. O-O {[%clk 0:02:30.3]} 10... b5 {[%clk 0:02:56.2]} 11. c5 {[%clk
0:02:24.5]} 11... Nbd7 {[%clk 0:02:53.8]} 12. b4 {[%clk 0:02:17.3]} 12... Bb7
{[%clk 0:02:46.7]} 13. Qc2 {[%clk 0:02:04.7]} 13... Qc7 {[%clk 0:02:42.4]} 14.
Ne5 {[%clk 0:01:45.4]} 14... Nxe5 {[%clk 0:02:34.1]} 15. dxe5 {[%clk 0:01:46.3]}
15... Nd7 {[%clk 0:02:34.8]} 16. f4 {[%clk 0:01:43.2]} 16... a5 {[%clk
0:02:34.1]} 17. a3 {[%clk 0:01:42.3]} 17... f6 {[%clk 0:02:31.7]} 18. Nf3 {[%clk
0:01:10]} 18... fxe5 {[%clk 0:02:21.8]} 19. Nxe5 {[%clk 0:01:05.2]} 19... Bf6
{[%clk 0:02:18.7]} 20. Qb2 {[%clk 0:00:55.6]} 20... Nxe5 {[%clk 0:02:12.5]} 21.
Bxe5 {[%clk 0:00:51.6]} 21... Bxe5 {[%clk 0:02:12.5]} 22. fxe5 {[%clk
0:00:49.2]} 22... Rad8 {[%clk 0:02:00.1]} 23. e3 {[%clk 0:00:44.6]} 23... Bc8
{[%clk 0:01:56.5]} 24. Bh3 {[%clk 0:00:38]} 24... Bd7 {[%clk 0:01:53.7]} 25. Qd4
{[%clk 0:00:35.8]} 25... Rde8 {[%clk 0:01:38.3]} 26. Rxf8+ {[%clk 0:00:31.3]}
26... Rxf8 {[%clk 0:01:38.1]} 27. Rf1 {[%clk 0:00:31.7]} 27... Rxf1+ {[%clk
0:01:34.7]} 28. Kxf1 {[%clk 0:00:29.1]} 28... axb4 {[%clk 0:01:30.6]} 29. axb4
{[%clk 0:00:27.9]} 29... Qa7 {[%clk 0:01:30.9]} 30. Qh4 {[%clk 0:00:24.4]} 30...
Qb8 {[%clk 0:01:00.5]} 31. Qe7 {[%clk 0:00:20.9]} 31... Qf8+ {[%clk 0:01:00.7]}
32. Qxf8+ {[%clk 0:00:20.8]} 32... Kxf8 {[%clk 0:01:01.2]} 33. Kf2 {[%clk
0:00:20.6]} 33... Ke7 {[%clk 0:01:00.5]} 34. Kf3 {[%clk 0:00:20.7]} 34... Be8
{[%clk 0:01:00.3]} 35. Kf4 {[%clk 0:00:18.5]} 35... Bg6 {[%clk 0:01:00.4]} 36.
Bg4 {[%clk 0:00:16.5]} 36... Be4 {[%clk 0:01:00.2]} 37. h4 {[%clk 0:00:16.1]}
37... Kf7 {[%clk 0:00:58.6]} 38. Bh5+ {[%clk 0:00:15.8]} 38... Ke7 {[%clk
0:00:53.2]} 39. Bg4 {[%clk 0:00:16]} 39... Bg6 {[%clk 0:00:53]} 40. Bf3 {[%clk
0:00:13.6]} 40... Kf7 {[%clk 0:00:51.8]} 41. Kg5 {[%clk 0:00:12.6]} 41... Bd3
{[%clk 0:00:50.1]} 42. Kf4 {[%clk 0:00:12.1]} 42... Bf5 {[%clk 0:00:45.5]} 43.
Kg5 {[%clk 0:00:10.5]} 43... g6 {[%clk 0:00:30.7]} 44. Kf4 {[%clk 0:00:10]}
44... Kg7 {[%clk 0:00:29.3]} 45. Be2 {[%clk 0:00:08]} 45... Kh6 {[%clk
0:00:28.3]} 46. Bf3 {[%clk 0:00:07.7]} 46... Kg7 {[%clk 0:00:26.6]} 47. Be2
{[%clk 0:00:07.9]} 47... Be4 {[%clk 0:00:27.1]} 48. Bd1 {[%clk 0:00:07.5]} 48...
Bb1 {[%clk 0:00:19.7]} 49. Be2 {[%clk 0:00:07.4]} 49... Kf7 {[%clk 0:00:20.4]}
50. Bg4 {[%clk 0:00:07.6]} 50... Ke7 {[%clk 0:00:20.5]} 51. Bf3 {[%clk
0:00:08.2]} 51... d4 {[%clk 0:00:20.5]} 52. exd4 {[%clk 0:00:07.3]} 52... Kd7
{[%clk 0:00:20.8]} 53. Bg4 {[%clk 0:00:07.7]} 53... Ba2 {[%clk 0:00:19.8]} 54.
Kg5 {[%clk 0:00:07.8]} 54... h5 {[%clk 0:00:13]} 55. Bh3 {[%clk 0:00:04.1]}
55... Bb1 {[%clk 0:00:13.2]} 56. Kf6 {[%clk 0:00:04.5]} 56... Bf5 {[%clk
0:00:08.8]} 57. Bxf5 {[%clk 0:00:04.9]} 57... exf5 {[%clk 0:00:09.7]} 58. e6+
{[%clk 0:00:04.9]} 58... Ke8 {[%clk 0:00:09.7]} 59. Kxg6 {[%clk 0:00:05.1]}
59... f4 {[%clk 0:00:10.1]} 60. Kf5 {[%clk 0:00:06]} 60... Ke7 {[%clk
0:00:10.9]} 61. gxf4 {[%clk 0:00:05.1]} 61... Ke8 {[%clk 0:00:11.3]} 62. Kg5
{[%clk 0:00:05.7]} 62... Ke7 {[%clk 0:00:12]} 63. f5 {[%clk 0:00:06.3]} 63...
Kf8 {[%clk 0:00:11.2]} 64. Kxh5 {[%clk 0:00:06.9]} 64... Ke7 {[%clk 0:00:11.2]}
65. Kg5 {[%clk 0:00:07.6]} 65... Kf8 {[%clk 0:00:11.5]} 66. h5 {[%clk
0:00:08.5]} 66... Kg7 {[%clk 0:00:12.3]} 67. h6+ {[%clk 0:00:09.4]} 67... Kh7
{[%clk 0:00:11.6]} 68. f6 {[%clk 0:00:09.4]} 68... Kg8 {[%clk 0:00:12.1]} 69.
Kg6 {[%clk 0:00:08.2]} 69... Kh8 {[%clk 0:00:11.4]} 70. e7 {[%clk 0:00:07]}
70... Kg8 {[%clk 0:00:11.9]} 71. e8=Q# {[%clk 0:00:07.3]} 1-0

[Event "*** SCC Grand Prix: Titled Tuesday Blitz"]
[Site "Chess.com"]
[Date "2020.08.25"]
[Round "1"]
[White "Titus369"]
[Black "Annagozel"]
[Result "1/2-1/2"]
[WhiteElo "2449"]
[BlackElo "1838"]
[TimeControl "180+1"]
[EndTime "10:08:54 PDT"]
[Termination "Game drawn - insufficient material"]

1. e4 {[%clk 0:03:00]} 1... c6 {[%clk 0:02:58.9]} 2. d4 {[%clk 0:02:59.1]} 2...
d5 {[%clk 0:02:58.1]} 3. Nd2 {[%clk 0:02:59.3]} 3... dxe4 {[%clk 0:02:56.5]} 4.
Nxe4 {[%clk 0:03:00.2]} 4... Bf5 {[%clk 0:02:55.7]} 5. Ng3 {[%clk 0:03:00.5]}
5... Bg6 {[%clk 0:02:55.4]} 6. Nh3 {[%clk 0:03:01.1]} 6... Nd7 {[%clk
0:02:45.1]} 7. Nf4 {[%clk 0:02:58.4]} 7... Nb6 {[%clk 0:02:32.2]} 8. h4 {[%clk
0:02:43.5]} 8... Nf6 {[%clk 0:02:24]} 9. c3 {[%clk 0:02:15.5]} 9... Nbd5 {[%clk
0:01:49.9]} 10. Nxd5 {[%clk 0:01:56.1]} 10... Qxd5 {[%clk 0:01:38.9]} 11. h5
{[%clk 0:01:55.3]} 11... Bf5 {[%clk 0:01:23.7]} 12. Nxf5 {[%clk 0:01:44.7]}
12... Qxf5 {[%clk 0:01:22.5]} 13. Bd3 {[%clk 0:01:45.2]} 13... Qe6+ {[%clk
0:01:15.7]} 14. Qe2 {[%clk 0:01:44.9]} 14... Qxe2+ {[%clk 0:01:13.4]} 15. Kxe2
{[%clk 0:01:45.8]} 15... e6 {[%clk 0:01:11]} 16. Bf4 {[%clk 0:01:45.4]} 16...
Nd5 {[%clk 0:01:07.2]} 17. Bg3 {[%clk 0:01:41.7]} 17... O-O-O {[%clk 0:01:04.1]}
18. a4 {[%clk 0:01:37.4]} 18... Bd6 {[%clk 0:01:02.4]} 19. Bxd6 {[%clk
0:01:32.3]} 19... Rxd6 {[%clk 0:01:01]} 20. g3 {[%clk 0:01:33.2]} 20... h6
{[%clk 0:00:49.6]} 21. a5 {[%clk 0:01:32.4]} 21... a6 {[%clk 0:00:48.2]} 22. f4
{[%clk 0:01:30.8]} 22... Nf6 {[%clk 0:00:46.1]} 23. Kf3 {[%clk 0:01:29.7]} 23...
c5 {[%clk 0:00:45.5]} 24. Rac1 {[%clk 0:01:14.5]} 24... cxd4 {[%clk 0:00:31.6]}
25. cxd4+ {[%clk 0:01:15.4]} 25... Kb8 {[%clk 0:00:31.6]} 26. Rc4 {[%clk
0:01:08.4]} 26... Rhd8 {[%clk 0:00:30.1]} 27. Ke3 {[%clk 0:01:07.7]} 27... Nd5+
{[%clk 0:00:27.7]} 28. Kf3 {[%clk 0:01:06.5]} 28... Nf6 {[%clk 0:00:26.8]} 29.
Ke3 {[%clk 0:01:01.7]} 29... Nd5+ {[%clk 0:00:25.9]} 30. Kf2 {[%clk 0:00:59.5]}
30... Nf6 {[%clk 0:00:25.3]} 31. Be2 {[%clk 0:00:58]} 31... Rxd4 {[%clk
0:00:24.6]} 32. Rhc1 {[%clk 0:00:58.1]} 32... Rxc4 {[%clk 0:00:24]} 33. Rxc4
{[%clk 0:00:59]} 33... Rd2 {[%clk 0:00:23.4]} 34. b4 {[%clk 0:00:52.7]} 34...
Nd5 {[%clk 0:00:23.7]} 35. g4 {[%clk 0:00:43.6]} 35... Rb2 {[%clk 0:00:23.7]}
36. g5 {[%clk 0:00:43.5]} 36... Rxb4 {[%clk 0:00:21.3]} 37. Rxb4 {[%clk
0:00:35.7]} 37... Nxb4 {[%clk 0:00:20.5]} 38. Ke3 {[%clk 0:00:36.3]} 38... Nd5+
{[%clk 0:00:19.3]} 39. Kf3 {[%clk 0:00:32.6]} 39... Kc7 {[%clk 0:00:19]} 40. Bd3
{[%clk 0:00:28.8]} 40... Kd6 {[%clk 0:00:18.5]} 41. Ke4 {[%clk 0:00:26.8]} 41...
Nb4 {[%clk 0:00:17.8]} 42. Be2 {[%clk 0:00:19.7]} 42... Nc6 {[%clk 0:00:12]} 43.
Bd1 {[%clk 0:00:15.9]} 43... Nxa5 {[%clk 0:00:11.7]} 44. Ba4 {[%clk 0:00:16.8]}
44... Nc4 {[%clk 0:00:10.4]} 45. Be8 {[%clk 0:00:15.9]} 45... Ke7 {[%clk
0:00:09.3]} 46. Ba4 {[%clk 0:00:15.5]} 46... b5 {[%clk 0:00:08.4]} 47. Bc2
{[%clk 0:00:15.5]} 47... Nd6+ {[%clk 0:00:08.2]} 48. Kd4 {[%clk 0:00:15.6]}
48... Nf5+ {[%clk 0:00:07.8]} 49. Kc5 {[%clk 0:00:14.2]} 49... Ng3 {[%clk
0:00:06.8]} 50. Bd1 {[%clk 0:00:13.4]} 50... e5 {[%clk 0:00:04.4]} 51. gxh6
{[%clk 0:00:10.7]} 51... gxh6 {[%clk 0:00:04.3]} 52. fxe5 {[%clk 0:00:11]} 52...
Ke6 {[%clk 0:00:04.8]} 53. Bb3+ {[%clk 0:00:11.1]} 53... Kxe5 {[%clk 0:00:05]}
54. Bxf7 {[%clk 0:00:11.1]} 54... Kf6 {[%clk 0:00:04.7]} 55. Bd5 {[%clk
0:00:11.1]} 55... Kg5 {[%clk 0:00:04.6]} 56. Bb7 {[%clk 0:00:11.5]} 56... Nxh5
{[%clk 0:00:04.8]} 57. Bxa6 {[%clk 0:00:11.7]} 57... Nf4 {[%clk 0:00:04.7]} 58.
Bxb5 {[%clk 0:00:11.3]} 58... h5 {[%clk 0:00:05.2]} 59. Kd4 {[%clk 0:00:10.6]}
59... h4 {[%clk 0:00:05.4]} 60. Ke3 {[%clk 0:00:10.4]} 60... h3 {[%clk
0:00:05.6]} 61. Kf2 {[%clk 0:00:07.1]} 61... h2 {[%clk 0:00:05.6]} 62. Bc6
{[%clk 0:00:06.9]} 62... Kg4 {[%clk 0:00:05.1]} 63. Bf3+ {[%clk 0:00:06]} 63...
Kf5 {[%clk 0:00:04.5]} 64. Ba8 {[%clk 0:00:06.9]} 64... Kg5 {[%clk 0:00:04.2]}
65. Kg3 {[%clk 0:00:06.2]} 65... Ne2+ {[%clk 0:00:03.2]} 66. Kxh2 {[%clk
0:00:06.2]} 1/2-1/2

[Event "*** SCC Grand Prix: Titled Tuesday Blitz"]
[Site "Chess.com"]
[Date "2020.08.25"]
[Round "1"]
[White "IrinaDrogovoz"]
[Black "Haykoooo0o"]
[Result "1/2-1/2"]
[WhiteElo "2227"]
[BlackElo "2519"]
[TimeControl "180+1"]
[EndTime "10:08:57 PDT"]
[Termination "Game drawn by repetition"]

1. d4 {[%clk 0:03:00.3]} 1... d6 {[%clk 0:02:57.2]} 2. c4 {[%clk 0:03:00.3]}
2... e5 {[%clk 0:02:57.7]} 3. Nc3 {[%clk 0:03:00.3]} 3... Nc6 {[%clk 0:02:57.1]}
4. d5 {[%clk 0:03:00.4]} 4... Nce7 {[%clk 0:02:56.5]} 5. Nf3 {[%clk 0:03:00.2]}
5... f5 {[%clk 0:02:50.4]} 6. e4 {[%clk 0:03:00.3]} 6... Nf6 {[%clk 0:02:49.9]}
7. Bd3 {[%clk 0:02:59.8]} 7... h6 {[%clk 0:02:41.6]} 8. O-O {[%clk 0:02:59]}
8... g6 {[%clk 0:02:41.5]} 9. Bd2 {[%clk 0:02:55.4]} 9... Bg7 {[%clk 0:02:40]}
10. Qc2 {[%clk 0:02:54]} 10... O-O {[%clk 0:02:37.9]} 11. Nh4 {[%clk 0:02:54.2]}
11... f4 {[%clk 0:02:34.8]} 12. Nf3 {[%clk 0:02:48.2]} 12... g5 {[%clk
0:02:32.9]} 13. h3 {[%clk 0:02:47.7]} 13... Rf7 {[%clk 0:02:29.2]} 14. b4 {[%clk
0:02:47.3]} 14... Bf8 {[%clk 0:02:28.7]} 15. c5 {[%clk 0:02:47.2]} 15... Rg7
{[%clk 0:02:25.2]} 16. Nh2 {[%clk 0:02:45.2]} 16... g4 {[%clk 0:02:09.4]} 17.
hxg4 {[%clk 0:02:43.6]} 17... Nxg4 {[%clk 0:02:10.3]} 18. Nxg4 {[%clk
0:02:43.8]} 18... Bxg4 {[%clk 0:02:09.3]} 19. f3 {[%clk 0:02:43.9]} 19... Bh3
{[%clk 0:01:59]} 20. Rf2 {[%clk 0:02:44.3]} 20... Nc8 {[%clk 0:01:55.6]} 21. Ne2
{[%clk 0:02:42.3]} 21... Qg5 {[%clk 0:01:49.2]} 22. g3 {[%clk 0:02:27.5]} 22...
Qh5 {[%clk 0:01:37.8]} 23. Nxf4 {[%clk 0:01:53.8]} 23... Rxg3+ {[%clk
0:01:12.6]} 24. Ng2 {[%clk 0:01:52.8]} 24... Bxg2 {[%clk 0:01:06.5]} 25. Rxg2
{[%clk 0:01:52.3]} 25... Qxf3 {[%clk 0:01:04.8]} 26. Be1 {[%clk 0:01:40.6]}
26... Rxg2+ {[%clk 0:01:01.2]} 27. Qxg2+ {[%clk 0:01:40.4]} 27... Qxg2+ {[%clk
0:01:02.1]} 28. Kxg2 {[%clk 0:01:41]} 28... dxc5 {[%clk 0:01:02.4]} 29. bxc5
{[%clk 0:01:41]} 29... Bxc5 {[%clk 0:01:03.3]} 30. Bd2 {[%clk 0:01:41]} 30...
Kg7 {[%clk 0:00:57.2]} 31. Rc1 {[%clk 0:01:40.7]} 31... Bd6 {[%clk 0:00:56.2]}
32. Kf3 {[%clk 0:01:40]} 32... Ne7 {[%clk 0:00:56.1]} 33. Rg1+ {[%clk
0:01:39.8]} 33... Ng6 {[%clk 0:00:53.5]} 34. Kg4 {[%clk 0:01:36.6]} 34... Rf8
{[%clk 0:00:53.2]} 35. Kh5 {[%clk 0:01:36.7]} 35... Rf6 {[%clk 0:00:52.6]} 36.
Bxh6+ {[%clk 0:01:37.2]} 36... Kh7 {[%clk 0:00:52]} 37. Bg5 {[%clk 0:01:37.1]}
37... Nf4+ {[%clk 0:00:50.9]} 38. Bxf4 {[%clk 0:01:35.5]} 38... Rxf4 {[%clk
0:00:51.8]} 39. Be2 {[%clk 0:01:32.7]} 39... Be7 {[%clk 0:00:51]} 40. Bg4 {[%clk
0:01:32.4]} 40... Rf6 {[%clk 0:00:46.8]} 41. Bf5+ {[%clk 0:01:32.6]} 41... Kh8
{[%clk 0:00:47.2]} 42. Rc1 {[%clk 0:01:26.3]} 42... Bd6 {[%clk 0:00:44]} 43. Rb1
{[%clk 0:01:24.7]} 43... b6 {[%clk 0:00:43.3]} 44. Kg5 {[%clk 0:01:21.6]} 44...
Kg7 {[%clk 0:00:41.3]} 45. Rh1 {[%clk 0:01:21.7]} 45... Rf7 {[%clk 0:00:39.4]}
46. Rh7+ {[%clk 0:01:20.3]} 46... Kf8 {[%clk 0:00:39.7]} 47. Rh8+ {[%clk
0:01:13.1]} 47... Ke7 {[%clk 0:00:39.9]} 48. Kg6 {[%clk 0:01:09.2]} 48... Rf6+
{[%clk 0:00:39]} 49. Kg7 {[%clk 0:01:09]} 49... Rf7+ {[%clk 0:00:39.4]} 50. Kg6
{[%clk 0:01:09.4]} 50... Rf6+ {[%clk 0:00:35.1]} 51. Kg7 {[%clk 0:01:06.4]}
51... a5 {[%clk 0:00:27.2]} 52. Rc8 {[%clk 0:00:48.8]} 52... Rf7+ {[%clk
0:00:26.5]} 53. Kg6 {[%clk 0:00:48.3]} 53... Rf8 {[%clk 0:00:26.6]} 54. Rxf8
{[%clk 0:00:46]} 54... Kxf8 {[%clk 0:00:27.5]} 55. Bd7 {[%clk 0:00:46.4]} 55...
Ke7 {[%clk 0:00:26.8]} 56. Bc6 {[%clk 0:00:46.9]} 56... Bc5 {[%clk 0:00:26.1]}
57. a4 {[%clk 0:00:44]} 57... Kd6 {[%clk 0:00:26.2]} 58. Bb5 {[%clk 0:00:43.9]}
58... Bb4 {[%clk 0:00:24.7]} 59. Kf6 {[%clk 0:00:43.8]} 59... Bc3 {[%clk
0:00:24.5]} 60. Kf7 {[%clk 0:00:40.7]} 60... Be1 {[%clk 0:00:20.6]} 61. Ke8
{[%clk 0:00:40.5]} 61... Bh4 {[%clk 0:00:20.5]} 62. Bd7 {[%clk 0:00:39.8]} 62...
Kc5 {[%clk 0:00:19.5]} 63. Bb5 {[%clk 0:00:39.5]} 63... Kd4 {[%clk 0:00:17.3]}
64. Bc6 {[%clk 0:00:39.2]} 64... Kc5 {[%clk 0:00:13.9]} 65. Kd7 {[%clk
0:00:39.4]} 65... Bg5 {[%clk 0:00:10.6]} 66. Kxc7 {[%clk 0:00:39.4]} 66... Be7
{[%clk 0:00:11.1]} 67. Kd7 {[%clk 0:00:39.8]} 67... Bf8 {[%clk 0:00:11.1]} 68.
Ke6 {[%clk 0:00:37.3]} 68... Bd6 {[%clk 0:00:11.3]} 69. Bb5 {[%clk 0:00:35.8]}
69... Bb8 {[%clk 0:00:11.2]} 70. Kd7 {[%clk 0:00:34.2]} 70... Bd6 {[%clk
0:00:12.1]} 71. Kc8 {[%clk 0:00:33.8]} 71... Bf8 {[%clk 0:00:11.9]} 72. Kd7
{[%clk 0:00:32.8]} 72... Bd6 {[%clk 0:00:11.8]} 73. Bc6 {[%clk 0:00:32.9]} 73...
Bb8 {[%clk 0:00:11.8]} 74. Ke6 {[%clk 0:00:31.9]} 74... Bd6 {[%clk 0:00:12.7]}
75. Kd7 {[%clk 0:00:31.9]} 75... Bb8 {[%clk 0:00:13.1]} 76. Bb5 {[%clk
0:00:23.3]} 76... Bd6 {[%clk 0:00:14]} 1/2-1/2

[Event "*** SCC Grand Prix: Titled Tuesday Blitz"]
[Site "Chess.com"]
[Date "2020.08.25"]
[Round "1"]
[White "salomez"]
[Black "FLamps8"]
[Result "1-0"]
[WhiteElo "2218"]
[BlackElo "2514"]
[TimeControl "180+1"]
[EndTime "10:09:00 PDT"]
[Termination "salomez won by resignation"]

1. e4 {[%clk 0:03:00.9]} 1... c6 {[%clk 0:02:59.4]} 2. d4 {[%clk 0:02:59.8]}
2... d5 {[%clk 0:02:59.9]} 3. e5 {[%clk 0:02:59.3]} 3... Bf5 {[%clk 0:02:59.5]}
4. Nf3 {[%clk 0:02:58.3]} 4... e6 {[%clk 0:03:00]} 5. Be2 {[%clk 0:02:59.2]}
5... Nd7 {[%clk 0:02:59.6]} 6. O-O {[%clk 0:02:59.8]} 6... Ne7 {[%clk
0:03:00.1]} 7. Nbd2 {[%clk 0:02:59.9]} 7... h6 {[%clk 0:03:00.7]} 8. Nb3 {[%clk
0:02:58.1]} 8... g5 {[%clk 0:03:00.6]} 9. c3 {[%clk 0:02:52]} 9... Qc7 {[%clk
0:02:58.4]} 10. h3 {[%clk 0:02:48.5]} 10... Bg7 {[%clk 0:02:55.3]} 11. a4 {[%clk
0:02:47.6]} 11... c5 {[%clk 0:02:55.2]} 12. a5 {[%clk 0:02:39.1]} 12... c4
{[%clk 0:02:54.7]} 13. Nbd2 {[%clk 0:02:37.4]} 13... f6 {[%clk 0:02:49]} 14.
exf6 {[%clk 0:02:35.8]} 14... Nxf6 {[%clk 0:02:49.9]} 15. Re1 {[%clk 0:02:36.3]}
15... O-O {[%clk 0:02:43.8]} 16. Ne5 {[%clk 0:02:35.9]} 16... Ne4 {[%clk
0:02:33.9]} 17. Ndf3 {[%clk 0:02:35.7]} 17... Ng6 {[%clk 0:02:22.4]} 18. Nxg6
{[%clk 0:02:27]} 18... Bxg6 {[%clk 0:02:23.3]} 19. Be3 {[%clk 0:02:27.1]} 19...
Rf7 {[%clk 0:02:00]} 20. Ne5 {[%clk 0:02:00.4]} 20... Bxe5 {[%clk 0:01:55.4]}
21. dxe5 {[%clk 0:02:00]} 21... Qxe5 {[%clk 0:01:36.8]} 22. Bd4 {[%clk
0:01:59.2]} 22... Qf4 {[%clk 0:01:11.4]} 23. Bf3 {[%clk 0:01:04.8]} 23... Raf8
{[%clk 0:00:58.8]} 24. Bxa7 {[%clk 0:00:31.5]} 24... Qh4 {[%clk 0:00:50.7]} 25.
Bxe4 {[%clk 0:00:20.5]} 25... Bxe4 {[%clk 0:00:50.4]} 26. Qg4 {[%clk 0:00:19.9]}
26... Rxf2 {[%clk 0:00:23.6]} 27. Rxe4 {[%clk 0:00:11.3]} 27... dxe4 {[%clk
0:00:03.9]} 28. Qxh4 {[%clk 0:00:10.9]} 28... Rxg2+ {[%clk 0:00:03.9]} 29. Kxg2
{[%clk 0:00:09.9]} 29... gxh4 {[%clk 0:00:04.1]} 30. Rf1 {[%clk 0:00:10.5]}
30... Ra8 {[%clk 0:00:03.5]} 31. Bb6 {[%clk 0:00:10]} 31... Rc8 {[%clk
0:00:02.6]} 32. Rf4 {[%clk 0:00:09.8]} 32... Rc6 {[%clk 0:00:02]} 33. Rxe4
{[%clk 0:00:09.2]} 33... Kf7 {[%clk 0:00:02]} 34. Rxh4 {[%clk 0:00:08.8]} 34...
Rd6 {[%clk 0:00:00.9]} 35. Rxh6 {[%clk 0:00:06.2]} 35... Rd2+ {[%clk 0:00:01.1]}
36. Kg3 {[%clk 0:00:05.9]} 36... Rxb2 {[%clk 0:00:01.6]} 37. Rh7+ {[%clk
0:00:06.4]} 37... Kg6 {[%clk 0:00:01.7]} 38. Rxb7 {[%clk 0:00:07]} 38... Rb3
{[%clk 0:00:02.6]} 39. a6 {[%clk 0:00:06]} 39... Rxc3+ {[%clk 0:00:03.1]} 40.
Kg4 {[%clk 0:00:06.3]} 40... Ra3 {[%clk 0:00:04]} 41. a7 {[%clk 0:00:06.5]}
41... c3 {[%clk 0:00:04.9]} 42. Rb8 {[%clk 0:00:06.1]} 42... c2 {[%clk
0:00:05.4]} 43. Rc8 {[%clk 0:00:06.2]} 43... Ra4+ {[%clk 0:00:04.5]} 44. Kg3
{[%clk 0:00:05.3]} 44... Ra3+ {[%clk 0:00:04.4]} 45. Kf4 {[%clk 0:00:05.3]}
45... Ra4+ {[%clk 0:00:04.4]} 46. Ke5 {[%clk 0:00:05]} 46... Ra6 {[%clk
0:00:04.2]} 47. Rxc2 {[%clk 0:00:02.5]} 47... Kf7 {[%clk 0:00:02.2]} 48. a8=Q
{[%clk 0:00:03.4]} 48... Rxa8 {[%clk 0:00:02.1]} 49. Rf2+ {[%clk 0:00:03.4]}
49... Kg6 {[%clk 0:00:02.1]} 50. Bd4 {[%clk 0:00:03.1]} 50... Ra5+ {[%clk
0:00:01.9]} 51. Ke4 {[%clk 0:00:03.3]} 51... Rh5 {[%clk 0:00:01.6]} 52. Rg2+
{[%clk 0:00:03.1]} 52... Kf7 {[%clk 0:00:02.2]} 53. Rg3 {[%clk 0:00:01.7]} 53...
Rh4+ {[%clk 0:00:02.7]} 54. Ke3 {[%clk 0:00:01.5]} 54... Rh5 {[%clk 0:00:03]}
55. Bc3 {[%clk 0:00:01.5]} 55... Rf5 {[%clk 0:00:02.8]} 56. Bd4 {[%clk
0:00:01.8]} 56... Ra5 {[%clk 0:00:02.7]} 57. Rf3+ {[%clk 0:00:01.8]} 57... Kg8
{[%clk 0:00:02]} 58. Rg3+ {[%clk 0:00:02.3]} 58... Kf7 {[%clk 0:00:02]} 59. h4
{[%clk 0:00:02.9]} 59... e5 {[%clk 0:00:02]} 60. Bc3 {[%clk 0:00:02.1]} 60...
Ke6 {[%clk 0:00:02.2]} 61. Kd3 {[%clk 0:00:02.6]} 61... Kd5 {[%clk 0:00:02.3]}
62. Bxa5 {[%clk 0:00:02]} 62... e4+ {[%clk 0:00:01.9]} 63. Ke3 {[%clk
0:00:01.9]} 63... Ke6 {[%clk 0:00:02.2]} 64. Rh3 {[%clk 0:00:02.8]} 64... Kf6
{[%clk 0:00:03.1]} 65. h5 {[%clk 0:00:03.7]} 65... Kg7 {[%clk 0:00:04]} 66. h6+
{[%clk 0:00:04.6]} 66... Kh7 {[%clk 0:00:04.4]} 67. Bb4 {[%clk 0:00:04.2]} 67...
Kg6 {[%clk 0:00:05.3]} 68. h7 {[%clk 0:00:05.1]} 68... Kg5 {[%clk 0:00:04.4]}
69. h8=Q {[%clk 0:00:06]} 1-0